Cogmind - Beta 12 @@@ ROGUE MODE // 2023.12.26 @ 02:38:21 Player: didyousaycookie Result: Destroyed by as-32665 with Assembled Rifle Performance ------------- Evolutions (0) 0 Regions Visited (2) 400 Robots Destroyed (21) 105 Value Destroyed (477) 477 Prototype IDs (2) 40 Alien Tech Used (0) 0 Bonus (0) 0 TOTAL SCORE: 1022 Bonus ------- None Cogmind --------- Core Integrity 0/250 Matter 300/300 Energy 97/100 System Corruption 2% Temperature Cool (85) Movement Core (350) Ox6 Location -10/Mines Parts ------- > --- POWER (1) -------- (None) > --- PROPULSION (2) --- (None) > --- UTILITY (2) ------ Large Storage Unit Signal Interpreter > --- WEAPON (2) ------- Small Laser > --- INVENTORY (15) --- Aluminum Leg Aluminum Leg Aluminum Leg Aluminum Leg Improved Aluminum Leg Improved Aluminum Leg Heat Sink Heat Sink Improved Heat Sink Sensor Array Terrain Scanner Light Armor Plating Light Armor Plating Small Laser Peak State ------------ > --- POWER ------------ Ion Engine > --- PROPULSION ------- Improved Aluminum Leg Improved Aluminum Leg > --- UTILITY ---------- Large Storage Unit Signal Interpreter > --- WEAPON ----------- Small Laser Small Laser > --- INVENTORY -------- Aluminum Leg Aluminum Leg Aluminum Leg Aluminum Leg Improved Aluminum Leg Improved Aluminum Leg Heat Sink Heat Sink Improved Heat Sink Sensor Array Terrain Scanner Light Armor Plating Light Armor Plating Particle Gun Grenade Launcher [Rating: 11] Favorites ----------- Power Ion Engine Engine Ion Engine Propulsion Improved Aluminum Leg Leg Improved Aluminum Leg Utility Signal Interpreter Device Heat Sink Storage Large Storage Unit Processor Signal Interpreter Weapon Small Laser Energy Gun Small Laser Launcher Grenade Launcher Build | -11 -10 -10 ------- Run | Jun Mat Min Slots Evolved . | . . . Power . | . . . Propulsion . | . . . Utility . | . . . Weapon . | . . . Parts Attached 23 | 6 10 7 Power 3 | 1 1 1 Engine 3 | 1 1 1 Core . | . . . Reactor . | . . . Propulsion 4 | 2 2 . Treads . | . . . Leg 4 | 2 2 . Wheel . | . . . Hover . | . . . Flight . | . . . Utility 5 | 1 4 . Device 1 | . 1 . Storage 3 | 1 2 . Processor 1 | . 1 . Hackware . | . . . Protection . | . . . Artifact . | . . . Weapon 11 | 2 3 6 Energy Gun 7 | 2 1 4 Energy Cannon . | . . . Ballistic Gun . | . . . Ballistic Cannon . | . . . Launcher 4 | . 2 2 Special Weapon . | . . . Impact Weapon . | . . . Slashing Weapon . | . . . Piercing Weapon . | . . . Special Melee Weapon . | . . . Unidentified Prototypes . | . . . Parts Lost 7 | . . 7 Power 2 | . . 2 Propulsion 2 | . . 2 Utility . | . . . Weapon 3 | . . 3 Highest Loss Streak 4 | . . 4 To Critical Strikes . | . . . Average Slot Usage (%) 99 | . 99 97 Engine 13 | . 14 13 Leg 27 | . 28 27 Device 1 | . 2 . Storage 14 | . 14 14 Processor 12 | . 11 14 Energy Gun 26 | . 28 22 Launcher 1 | . . 4 Naked Turns . | . . . Heaviest Build 31 | 12 27 31 Greatest Support 26 | 20 26 26 Greatest Overweight (x) 2 | . 1 2 Average Overweight (x) . | . . 1 Largest Inventory Capacity 15 | 8 15 15 Average Capacity 13 | 7 12 15 Most Carried 15 | 4 13 15 Average Carried 11 | 2 10 14 Final Capacity 15 | 8 15 15 Final Carried 14 | 4 13 14 Class Distribution -------------------- 100% | Mutant Dominant Class ---------------- Mutant | -10/Materials Mutant | -10/Mines Resources | -11 -10 -10 ----------- Run | Jun Mat Min Matter Collected 497 | 209 151 137 Remotely . | . . . Salvage Created 797 | . 515 282 Parts 37 | . 27 10 Haulers Intercepted 2 | . 2 . Recyclers Shooed 3 | . 2 1 Parts Field Recycled . | . . . Retrieved Matter . | . . . Parts Self-Destructed . | . . . Prevented . | . . . Kills | -11 -10 -10 ------- Run | Jun Mat Min Combat Hostiles Destroyed 16 | . 9 7 Guns 12 | . 7 5 AOE 4 | . 2 2 Classes Destroyed 6 | . 5 1 Hauler 2 | . 2 . Recycler 2 | . 1 1 Watcher 2 | . 2 . Swarmer 5 | . 3 2 Grunt 10 | . 6 4 Assembled 1 | . . 1 Best Kill Streak 3 | . 2 3 Combat Bots Only 2 | . 2 2 Max Kills in Single Turn 2 | . 2 1 Gunslinging . | . . . Exploded 2 | . 2 1 Melee . | . . . Uniques/NPCs Destroyed . | . . . Combat | -11 -10 -10 -------- Run | Jun Mat Min Damage Taken 1014 | . 418 596 Core 258 | . 71 187 Absorbed by Shields . | . . . Core Remaining (%) 100 | 100 . . Volleys Fired 89 | . 54 35 Largest 2 | . 2 2 Hottest 105 | . 80 105 Shots Fired 165 | . 108 57 Gun 157 | . 107 50 Cannon . | . . . Launcher 8 | . 1 7 Special . | . . . Kinetic . | . . . Thermal 157 | . 107 50 Explosive 8 | . 1 7 Electromagnetic . | . . . Robot Hit Streak 9 | . 9 6 Robot Miss Streak 4 | . 3 4 Penetration Max . | . . . Secondary Targets . | . . . Shots Hit Robots 90 | . 64 26 Core Hits 44 | . 27 17 Critical Kills . | . . . Critical Parts Destroyed . | . . . Critical Strikes . | . . . Melee Attacks . | . . . Impact . | . . . Slashing . | . . . Piercing . | . . . Sneak Attacks . | . . . Combat Hostiles . | . . . Follow-up Attacks . | . . . Damage Inflicted 1540 | . 845 695 Guns 1061 | . 711 350 Cannons . | . . . Explosions 479 | . 134 345 Melee . | . . . Ramming . | . . . Kinetic . | . . . Thermal 1061 | . 711 350 Explosive 479 | . 134 345 Electromagnetic . | . . . Impact . | . . . Slashing . | . . . Piercing . | . . . Highest Corruption 2 | . 2 2 Average Corruption 2 | . 2 2 Corruption Purged . | . . . Corruption Blocked . | . . . Effects 19 | . 7 12 Message Errors 3 | . 1 2 Matter Fused 2 | . . 2 Heat Flow Errors 3 | . . 3 Energy Discharges 5 | . 3 2 Data Loss (minor) 3 | . 2 1 Data Loss (major) 1 | . 1 . Misfires 2 | . . 2 Overload Shots . | . . . Overflow Damage 54 | . 7 47 Projectiles . | . . . Explosions 54 | . 7 47 Melee . | . . . Knockbacks . | . . . Impact . | . . . Kinetic . | . . . Secondary . | . . . Self-Inflicted Damage 29 | . . 29 Shots 1 | . . 1 Rammed . | . . . Targets Rammed . | . . . Kicked . | . . . Crushed . | . . . Highest Temperature 294 | . 162 294 Average Temperature 76 | . 37 109 Received Heat Transfer 399 | . 198 201 Effects 2 | . . 2 Interference 2 | . . 2 Siege Activations . | . . . Robots Corrupted . | . . . Combat Hostiles . | . . . Parts Fried . | . . . Impact Corruptions . | . . . Robots Melted . | . . . Combat Hostiles . | . . . Parts Melted 3 | . 2 1 Heat Transferred 2459 | . 1625 834 Parts Sabotaged . | . . . Parts Stolen . | . . . Parts Stripped . | . . . Power Chain Reactions . | . . . Missiles Intercepted . | . . . Alert | -11 -10 -10 ------- Run | Jun Mat Min Peak Influence 224 | . 224 160 Initial 2 | . . 2 Average 53 | . 67 27 Maximum Alert Level 1 | . 1 . Low Security (%) 98 | 100 97 100 Level 1 1 | . 2 . Level 2 . | . . . Level 3 . | . . . Level 4 . | . . . Level 5 . | . . . High Security . | . . . Max Security . | . . . Squads Dispatched 4 | . 3 1 Investigation 1 | . . 1 Extermination . | . . . Reinforcement 3 | . 3 . Assault . | . . . Garrison . | . . . Intercept . | . . . Searches Triggered . | . . . Construction Impeded . | . . . Haulers Reinforced . | . . . Active Scanning Responses . | . . . Cargo Convoy Interrupts . | . . . Stealth | -11 -10 -10 --------- Run | Jun Mat Min Distress Signals 2 | . 2 . Communications Jammed . | . . . Distress Signals . | . . . Times Spotted 34 | . 21 13 Peak Tracking Total 4 | . 3 4 Tactical Retreats 1 | . . 1 Traps | -11 -10 -10 ------- Run | Jun Mat Min Traps Triggered 1 | . 1 . Indirectly . | . . . Trap Hack Attempts . | . . . Triggered . | . . . Disarmed . | . . . Reprogrammed . | . . . Reused . | . . . Traps Extracted . | . . . Installed . | . . . Triggered . | . . . Machines | -11 -10 -10 ---------- Run | Jun Mat Min Machines Disabled . | . . . Max in Single Turn . | . . . Machines Repaired . | . . . Machines Sabotaged . | . . . Overloaded Fab Kills . | . . . Hacking | -11 -10 -10 --------- Run | Jun Mat Min Machines Accessed 8 | . 7 1 Terminals 5 | . 5 . Fabricators . | . . . Repair Stations . | . . . Recycling Units 2 | . 2 . Scanalyzers . | . . . Garrison Access . | . . . Total Hacks 17 | . 16 1 Successful 11 | . 10 1 Failed 6 | . 6 . Catastrophic 1 | . 1 . Database Lockouts . | . . . Manual 9 | . 9 . Terminals 13 | . 13 . Fabricators . | . . . Repair Stations . | . . . Recycling Units 3 | . 3 . Scanalyzers . | . . . Garrison Access . | . . . Terminal Hacks 4 | . 3 1 Prototype ID Bank 1 | . 1 . Open Door 1 | . . 1 Alert Level 1 | . 1 . Recall Reinforcements 1 | . 1 . Fabricator Hacks . | . . . Repair Station Hacks . | . . . Recycling Unit Hacks 2 | . 2 . Report Inventory 2 | . 2 . Scanalyzer . | . . . Garrison Access Hacks . | . . . Unauthorized Hacks 5 | . 5 . Terminals 5 | . 5 . Track 1 | . 1 . Assimilate 1 | . 1 . Botnet 3 | . 3 . Fabricators . | . . . Repair Stations . | . . . Recycling Units . | . . . Scanalyzers . | . . . Garrison Access . | . . . Data Cores Recovered . | . . . Used . | . . . Hacking Detections 6 | . 6 . Full Trace Events 1 | . 1 . Feedback Events . | . . . Feedback Blocked . | . . . Robot Schematics Acquired . | . . . Robots Built . | . . . Authchips . | . . . Time . | . . . Total Robot Build Rating . | . . . Part Schematics Acquired . | . . . Parts Built . | . . . Authchips . | . . . Time . | . . . Total Part Build Rating . | . . . Parts Repaired . | . . . Time . | . . . Parts Recycled . | . . . Recycled Matter . | . . . Retrieved Matter . | . . . Retrieved Components . | . . . Parts Scanalyzed . | . . . Part Schematics Acquired . | . . . Parts Damaged . | . . . Bothacking | -11 -10 -10 ------------ Run | Jun Mat Min Used RIF Installer . | . . . Robots Hacked . | . . . Non-combat . | . . . Combat . | . . . Robot Hacks Applied . | . . . Relay Couplers Released . | . . . Fabnet Peak Effective % . | . . . Robots Rewired . | . . . Allies Hacked . | . . . Hacks Repelled . | . . . Allies | -11 -10 -10 -------- Run | Jun Mat Min Total Allies . | . . . Largest Group . | . . . Highest-Rated Group . | . . . Highest-Rated Ally . | . . . Total Orders . | . . . Ally Attacks . | . . . Total Damage . | . . . Kills . | . . . Allies Corrupted . | . . . Allies Melted . | . . . Intel | -11 -10 -10 ------- Run | Jun Mat Min Robot Analysis Total . | . . . Derelict Logs Recovered 1 | . . 1 Drone Launches . | . . . Drone Recoveries . | . . . Exploration | -11 -10 -10 ------------- Run | Jun Mat Min Turns Passed 2114 | 55 1382 677 Spaces Moved 1285 | 43 948 294 Core 12 | 12 . . Treads . | . . . Legs 1273 | 31 948 294 Wheels . | . . . Hover . | . . . Flight . | . . . Fastest Speed 50 | 50 120 190 Average Speed 136 | 100 120 190 Slowest Speed 260 | 120 190 260 Overloaded Moves . | . . . Propulsion Burnouts . | . . . Robots Hopped . | . . . Cave-ins Triggered . | . . . Exploration Rate (%) 50 | 3 96 53 Regions Visited 2 Branch Regions 1 Pre-discovered Areas 1 | . . 1 Known Exits Taken 1 | . 1 . Unknown Exits Taken 1 | 1 . . Scrap Searched . | . . . Spaces Dug . | . . . Terrain Destroyed 75 | . 7 68 Melee . | . . . Projectile . | . . . AOE 75 | . 7 68 Terrain Rammed . | . . . Walls Destroyed . | . . . Machines Disabled . | . . . Actions | -11 -10 -10 --------- Run | Jun Mat Min Total 1494 | 52 1084 358 Wait 58 | . 46 12 Move 1283 | 42 947 294 Hop . | . . . Pick Up 26 | 4 15 7 Fast Attach 8 | 6 2 . Attach 3 | . . 3 Detach 1 | . 1 . Swap 12 | . 8 4 Drop 14 | . 11 3 Fire 89 | . 54 35 Melee . | . . . Ram . | . . . Kick . | . . . Crush . | . . . Escape Stasis . | . . . Rewire . | . . . Trap . | . . . Miscellaneous . | . . . Route ------- -11/Junkyard -10/Materials (discovered 4 exits: *Mat x3 / *Min) -10/Mines (discovered 1 exit: *Mat) History --------- Turn | Location | Event 2 | -11/Junkyard | Met Revision 17 7 | -11/Junkyard | Discovered new exit (range 15) 56 | -11/Junkyard | Entered Materials 151 | -10/Materials | Discovered new exit (range 13) 350 | -10/Materials | Build established: Mutant 456 | -10/Materials | Identified exit to Mines 646 | -10/Materials | Discovered new exit (range 7) 688 | -10/Materials | Identified exit to Materials 1126 | -10/Materials | Discovered exit to Materials (range 16) 1228 | -10/Materials | Discovered exit to Materials (range 15) 1438 | -10/Materials | Entered Mines 1487 | -10/Mines | Met a Derelict shopkeep closing up shop 1551 | -10/Mines | Discovered exit to Materials (range 10) 1815 | -10/Mines | Core integrity fell below 50% 1907 | -10/Mines | Excavation squad dispatched 1907 | -10/Mines | A large section of the Mines collapsed 2097 | -10/Mines | Core integrity fell below 20% 2115 | -10/Mines | Destroyed by as-32665 with Assembled Rifle Last Messages --------------- 02024_ Sml. Laser temporarily disabled. 02034_ K-01 Serf collects debris. 02038_ Acquired Sml. Laser. 02039_ Acquired 30 matter. 02041_ Acquired 37 matter. 02041_ K-01 Serf collects debris. 02073_ K-01 Serf destroyed. 02075_ Acquired 30 matter. 02078_ T-07 Excavator destroyed. 02080_ R-06 Scavenger destroyed. 02081_ U-05 Engineer builds a Wall. 02082_ Imp. Aluminum Leg destroyed. 02085_ U-05 Engineer builds a Wall. 02086_ Ion Engine destroyed. 02092_ as-97533 destroyed. 02096_ U-05 Engineer destroyed. 02098_ Particle Gun destroyed. 02106_ as-05107 destroyed. 02108_ KMRDPLUFIYAUM BJZ=M|=B/ 02109_ Imp. Aluminum Leg destroyed. Map ----- +----------------------------------------------------+ | ????#### #??# #?????????????????????????????????? | | ???????# #### ##????????????????????????????????? | | ???????# ##???????????????????????????????? | | ???????###### ##??????????????????????????????? | | ######?????# #??????????????????????????????? | | """""#?????# #??????????????????????????????? | | =!!#!#?????## ##??????????????????????????????? | | # =#???????## #???????????????????????????????? | | * !#???????## #???????????????????????????????? | | # ###?????## ##?????????????????????########## | | X #????## ##??????????????????## | | ###??# ##?????####????????# ? | | #??# ##???## ##???????# #??? | | #??# ##### #####???# #???? | | #??## #### ##?## #?????? | | #???# #??## %= ## ### #??????? | | #???# #???## ##?# = = #??????? | | #???# ###### ##?## = !% ##??????? | | #### ##???# ## #### ##???????? | | ???# #????# #### ## ##????????? | | ???# #????# % ! =## ##?????????? | | ???# ###### # # % a#### ##??????????? | | ???# # ## # # % #??## ##???????????? | | ???# % # ### ## ! ##???####????????????? | | ???# """ ##?####a=##????????????????????? | | #?## """ ##???#@##?????????????????????? | | ### """ ##??# #??????????????????????? | | [#### ##?????????????????????? | | ## !=%### ##?????????????????????? | | #### =** ##?????????????????????? | | #??#### # = ##?????????????????????? | | #?????# ## # ##?????????????????????? | | ### #?????# ####### ##?????????????????????? | | ??# ##?????# #????## ##?????????????????????? | | ??# ###????### #?????# #?????????????????????? | | ??####?????## #?????# # ?????????????????????? | | ??????????## ##????# ?????????????????????? | | ?????????## #??? # ????????????????????? | | ?????????# < #### ????????????????????? | | ###??????# % % k #???????????????????? | | ##?????## ## #???????????????????? | | ##?????#### ## # ###???????????????????? | | ####?????######## = ??????????????????????? | | #????????????# ??????????????????????? | | ### #????????????# ## ??????????????????????? | | " #?# ####?????????# #? ??????????????????????? | | " ### #?????##### #?###??????????????????????? | | " ##### #????## ##?????????????????????????? | | ##### #???## ##????????????????????????? | | ##### #????????????????????????? | +----------------------------------------------------+ Best States ------------- Heat Dissipation 35 Energy Generation 10 Energy Capacity 250 Matter Stores 300 Matter Capacity 300 Sight Range 16 Terrain Scan Density 10 Evasion (%) 55 Item Schematics ----------------- None Robot Schematics ------------------ None Fabricated ------------ Nothing Alien Tech Used ----------------- None Achievements -------------- Quantum Hacking Challenges ------------ None Game ------ Seed HelicalPropulsionCapacitor Manual? 0 Play Time 00:19:41 Cumulative 42.9 hours Start 2023.12.26 @ 02:20:35 End 2023.12.26 @ 02:38:21 Sessions 1 Manual Loads 0 Difficulty Rogue Special Mode None Game No. 47 Rogue 47 Adventurer 0 Explorer 0 Win Type - Total 0 Types 0/0/0/0/0/0/0/0/0 Lore% 29 Gallery% 30 Achievement% 23 Wizard Run 0 Options --------- ASCII 0 Keyboard 1 Movement Numpad Keybinds 1 Fullscreen 1 Font 18/SmallcapsGlow Map View 76x50 Tactical HUD 1 Map Filters NONE Filters NONE Steam 1 RUN: 6b77bbbd-5167-4c16-b668-d6d54ccdfe9d